fUSD/lending_fUSD_20240822
["ID","MTS","AMOUNT","RATE_DAILY","PERIOD"]
[335533454,1724314249940,-3358.77699819,0.000108,2]
[335533455,1724314249959,-470.61999998,0.000108,2]
[335533456,1724314249975,-389.63124367,0.000108,2]
[335533457,1724314249986,-1000.18527722,0.000108,2]
[335533460,1724314249997,-4776.59933758,0.000108,2]
[335534418,1724314260146,475.37,8.219e-05,2]
[335535004,1724314290083,500.0,8.964e-05,2]
[335535005,1724314291661,500.0,8.964e-05,2]
[335535006,1724314319258,23900.0,9.866e-05,2]
[335535007,1724314361265,162.7,9.859e-05,2]
[335535008,1724314441337,240.95,9.857e-05,2]
[335535009,1724314453935,500.0,8.964e-05,2]
[335535010,1724314467122,500.0,8.964e-05,2]
[335535011,1724314472626,500.0,8.964e-05,2]
[335535012,1724314479599,295.88544343,9.859e-05,2]
[335535013,1724314486213,500.0,8.964e-05,2]
[335535014,1724314490627,500.0,8.964e-05,2]
[335535015,1724314541699,726.22,9.826e-05,2]
[335535021,1724314575151,328.0,9.828e-05,2]
[335535022,1724314719428,410.1,9.834e-05,2]
[335535023,1724314724815,459.13321521,9.899e-05,2]
[335535024,1724314777309,487.46,8.219e-05,2]
[335535025,1724314831862,162.71,9.762e-05,2]
[335535026,1724314902476,240.95,9.701e-05,2]
[335535027,1724314951753,200.0,9.683e-05,2]
[335535028,1724315107329,737.6,9.644e-05,2]
[335535029,1724315114564,150.0,9.715e-05,2]
[335535030,1724315133383,500.0,9.625e-05,2]
[335535031,1724315135460,777.44,9.625e-05,2]
[335535032,1724315151914,155.35346377,9.899e-05,2]
[335535033,1724315217636,11304.25,9.646e-05,2]
[335535034,1724315230083,26166.76980326,9.899e-05,2]
[335535035,1724315239896,160.87,9.672e-05,2]
[335535037,1724315299652,1994.19,9.656e-05,2]
[335535038,1724315305308,167.24,9.658e-05,2]
[335535039,1724315306013,296.99205589,9.899e-05,2]
[335535041,1724315335724,348.18980877,9.899e-05,2]
[335535042,1724315337494,160.09,9.601e-05,2]
[335535043,1724315340146,607.50217725,9.899e-05,2]
[335535044,1724315358185,481.0,8.219e-05,2]
[335535048,1724315409014,23900.0,9.645e-05,2]
[335535057,1724315431803,-794.0,9.907e-05,2]
[335535058,1724315431813,-794.0,9.907e-05,2]
[335535059,1724315431822,-794.0,9.907e-05,2]
[335535060,1724315431832,-716.41287549,9.907e-05,2]
[335535061,1724315431841,-88.12192514,9.929e-05,2]
[335535062,1724315431852,-959.14258952,9.929e-05,2]
[335535063,1724315431861,-300.0,9.996e-05,2]
[335535064,1724315431871,-300.0,9.996e-05,2]
[335535065,1724315431880,-4477.50304338,9.997e-05,2]
[335535066,1724315431891,-805.63031946,9.997e-05,2]
[335535067,1724315431903,-8187.43401926,9.997e-05,2]
[335535068,1724315431914,-379.40749569,9.997e-05,2]
[335535069,1724315431926,-1333.33532221,9.997e-05,2]
[335535070,1724315431935,-1074.88726643,9.999e-05,2]
[335535071,1724315431944,-211.0133722,0.0001,2]
[335535072,1724315431954,-80.76403916,0.0001,2]
[335535073,1724315431965,-2135.55247966,0.0001,2]
[335535074,1724315431974,-729.56564802,0.0001,2]
[335535075,1724315431983,-1500.0,0.00010009,2]
[335535076,1724315431993,-265.50997571,0.00010009,2]
[335535077,1724315432002,-1523.49047848,0.00010026,2]
[335535078,1724315432019,-555.249,0.00010026,2]
[335535079,1724315432030,-309.23574473,0.00010026,2]
[335535080,1724315432039,-1863.87532004,0.00010097,2]
[335535081,1724315432049,-155.0,0.00010097,2]
[335535082,1724315432058,-439.33000716,0.000101,2]
[335535084,1724315432067,-794.0,0.00010247,2]
[335535086,1724315432077,-396.29,0.00010247,2]
[335535088,1724315432087,-499.99,0.00010247,2]
[335535090,1724315432096,-178.34,0.0001033,2]
[335535092,1724315432105,-500.0,0.00010334,2]
[335535093,1724315432114,-500.0,0.00010334,2]
[335535095,1724315432124,-150.0,0.00010457,2]
[335535097,1724315432133,-481.0,0.00010458,2]
[335535099,1724315432143,-166.39780491,0.00010471,2]
[335535101,1724315432152,-517.65878543,0.00010505,2]
[335535103,1724315432161,-500.0,0.00010505,2]
[335535105,1724315432171,-742.1170854,0.00010505,2]
[335535107,1724315432180,-255.71947903,0.00010505,2]
[335535109,1724315432189,-242.53687016,0.00010505,2]
[335535111,1724315432199,-310.66541419,0.00010505,2]
[335535113,1724315432207,-191.52383957,0.00010505,2]
[335535115,1724315432217,-358.14086593,0.00010566,2]
[335535117,1724315432227,-236.78945143,0.00010566,2]
[335535119,1724315432236,-292.74243511,0.00010566,2]
[335535121,1724315432245,-203.44814982,0.00010566,2]
[335535123,1724315432259,-328.86743048,0.00010566,2]
[335535125,1724315432269,-285.91654861,0.00010566,2]
[335535127,1724315432278,-164.4317177,0.00010566,2]
[335535129,1724315432287,-297.51588055,0.00010566,2]
[335535131,1724315432298,-536.75723948,0.00010566,2]
[335535133,1724315432307,-1051.32949098,0.00010582,2]
[335535135,1724315432316,-205.13541094,0.00010582,4]
[335535136,1724315432325,-413.39640966,0.00010582,2]
[335535138,1724315432338,-170.59001801,0.00010582,2]
[335535139,1724315432348,-162.86951245,0.00010582,2]
[335535140,1724315432357,-611.64,0.00010582,2]
[335535141,1724315432366,-1370.20176,0.0001069,2]
[335535142,1724315432376,-183.39900012,0.00010699,2]
[335535143,1724315432384,-299.14911154,0.00010699,2]
[335535144,1724315432394,-547.29718905,0.00010699,2]
[335535145,1724315432403,-155.0,0.00010699,2]
[335535146,1724315432412,-150.0,0.000107,2]
[335535147,1724315432422,-2397.27433985,0.000107,3]
[335535148,1724315432431,-167.7305538,0.000107,2]
[335535149,1724315432440,-171.61026492,0.000107,2]
[335535150,1724315432449,-352.94356254,0.000107,2]
[335535151,1724315432458,-652.5645611,0.000107,2]
[335535152,1724315432467,-338.70850026,0.000107,2]
[335535153,1724315432635,-522.9745894,0.00010713,2]
[335535154,1724315432646,-623.0,0.00010773,2]
[335535155,1724315432655,-200.0,0.00010773,2]
[335535156,1724315432665,-794.0,0.00010786,2]
[335535157,1724315432675,-2375.949493,0.00010793,2]
[335535158,1724315432684,-6102.375667,0.00010793,2]
[335535159,1724315432694,-715.5169173,0.00010793,2]
[335535160,1724315432703,-811.95118385,0.00010797,2]
[335535161,1724315432713,-500.0,0.00010798,2]
[335535162,1724315432723,-500.0,0.00010798,2]
[335535163,1724315432733,-500.0,0.00010798,2]
[335535164,1724315432743,-500.0,0.00010798,2]
[335535165,1724315432752,-500.0,0.00010798,2]
[335535166,1724315432762,-500.0,0.00010798,2]
[335535167,1724315432771,-500.0,0.00010798,2]
[335535168,1724315432782,-500.0,0.00010798,2]
[335535169,1724315432791,-500.0,0.00010798,2]
[335535170,1724315432800,-500.0,0.00010798,2]
[335535171,1724315432809,-500.0,0.00010798,2]
[335535172,1724315432819,-500.0,0.00010798,2]
[335535173,1724315432829,-500.0,0.00010798,2]
[335535174,1724315432838,-249.43642187,0.00010798,2]
[335535175,1724315432848,-500.0,0.00010798,2]
[335535176,1724315432857,-500.0,0.00010798,2]
[335535177,1724315432866,-500.0,0.00010798,2]
[335535178,1724315432876,-500.0,0.00010798,2]
[335535179,1724315432885,-500.0,0.00010798,2]
[335535180,1724315432894,-500.0,0.00010798,2]
[335535181,1724315432904,-500.0,0.00010798,2]
[335535182,1724315432912,-500.0,0.00010798,2]
[335535183,1724315432922,-492.93180644,0.00010798,2]
[335535184,1724315432932,-500.0,0.00010798,2]
[335535185,1724315432942,-500.0,0.00010798,2]
[335535186,1724315432951,-500.0,0.00010798,2]
[335535187,1724315432960,-500.0,0.00010798,2]
[335535188,1724315432969,-500.0,0.00010798,2]
[335535189,1724315432978,-500.0,0.00010798,2]
[335535190,1724315432987,-5277.53835378,0.00010799,2]
[335535191,1724315432996,-985.73362732,0.00010799,2]
[335535192,1724315433005,-500.0,0.00010799,2]
[335535193,1724315433016,-500.0,0.00010799,2]
[335535194,1724315433025,-500.0,0.00010799,2]
[335535195,1724315433034,-500.0,0.00010799,2]
[335535196,1724315433044,-500.0,0.00010799,2]
[335535197,1724315433054,-500.0,0.00010799,2]
[335535198,1724315433065,-500.0,0.00010799,2]
[335535199,1724315433075,-531.00583952,0.00010799,2]
[335535200,1724315433085,-500.0,0.00010799,2]
[335535201,1724315433094,-500.0,0.00010799,2]
[335535202,1724315433104,-232.59269746,0.00010799,2]
[335535203,1724315433117,-267.40730254,0.00010799,2]
[335535204,1724315433126,-594.52972898,0.00010799,2]
[335535205,1724315433136,-500.0,0.00010799,2]
[335535206,1724315433146,-500.0,0.00010799,2]
[335535207,1724315433155,-500.0,0.00010799,2]
[335535208,1724315433165,-500.0,0.00010799,2]
[335535209,1724315433175,-500.0,0.00010799,2]
[335535210,1724315433184,-250.28523305,0.00010799,2]
[335535211,1724315433194,-162.78185296,0.00010799,2]
[335535212,1724315433204,-500.0,0.00010799,2]
[335535213,1724315433213,-450.46708383,0.00010799,2]
[335535214,1724315433223,-500.0,0.00010799,2]
[335535215,1724315433232,-500.0,0.00010799,2]
[335535216,1724315433242,-500.0,0.00010799,2]
[335535217,1724315433252,-500.0,0.00010799,2]
[335535218,1724315433265,-500.0,0.00010799,2]
[335535219,1724315433274,-554.02299192,0.00010799,2]
[335535220,1724315433284,-500.0,0.00010799,2]
[335535221,1724315433294,-500.0,0.00010799,2]
[335535222,1724315433305,-500.0,0.00010799,2]
[335535223,1724315433314,-500.0,0.00010799,2]
[335535224,1724315433324,-500.0,0.00010799,2]
[335535225,1724315433333,-500.0,0.00010799,2]
[335535226,1724315433346,-397.98,0.00010799,2]
[335535227,1724315433356,-367.68863572,0.00010799,2]
[335535228,1724315433366,-366.69622064,0.00010799,2]
[335535229,1724315433378,-133.30377936,0.00010799,2]
[335535230,1724315433387,-500.0,0.00010799,2]
[335535231,1724315433396,-500.0,0.00010799,2]
[335535232,1724315433406,-500.0,0.00010799,2]
[335535233,1724315433415,-500.0,0.00010799,2]
[335535234,1724315433424,-500.0,0.00010799,2]
[335535235,1724315433434,-500.0,0.00010799,2]
[335535236,1724315433443,-500.0,0.00010799,2]
[335535237,1724315433452,-500.0,0.00010799,2]
[335535238,1724315433462,-500.0,0.00010799,2]
[335535239,1724315433472,-500.0,0.00010799,2]
[335535240,1724315433482,-500.0,0.00010799,2]
[335535241,1724315433491,-500.0,0.00010799,2]
[335535242,1724315433500,-500.0,0.00010799,2]
[335535243,1724315433510,-500.0,0.00010799,2]
[335535244,1724315433520,-410.14882305,0.00010799,2]
[335535245,1724315433529,-500.0,0.00010799,2]
[335535246,1724315433539,-500.0,0.00010799,2]
[335535247,1724315433549,-500.0,0.00010799,2]
[335535248,1724315433558,-500.0,0.00010799,2]
[335535249,1724315433568,-500.0,0.00010799,2]
[335535250,1724315433578,-492.62112894,0.00010799,2]
[335535251,1724315433588,-500.0,0.00010799,2]
[335535252,1724315433597,-500.0,0.00010799,2]
[335535253,1724315433607,-140.13107903,0.00010799,2]
[335535254,1724315433628,-359.86892097,0.00010799,2]
[335535255,1724315433638,-500.0,0.00010799,2]
[335535256,1724315433647,-228.74,0.00010799,2]
[335535257,1724315433657,-500.0,0.00010799,2]
[335535258,1724315433667,-500.0,0.00010799,2]
[335535259,1724315433676,-500.0,0.00010799,2]
[335535260,1724315433686,-500.0,0.00010799,2]
[335535261,1724315433695,-500.0,0.00010799,2]
[335535262,1724315433705,-644.14,0.00010799,2]
[335535263,1724315433715,-274.31471816,0.00010799,2]
[335535264,1724315433726,-225.68528184,0.00010799,2]
[335535265,1724315433736,-500.0,0.00010799,2]
[335535266,1724315433746,-26.48682413,0.00010799,2]
[335535267,1724315433758,-473.51317587,0.00010799,2]
[335535268,1724315433769,-173.30800425,0.00010799,2]
[335535269,1724315433778,-500.0,0.00010799,2]
[335535270,1724315433789,-102.9675412,0.00010799,2]
[335535271,1724315433801,-397.0324588,0.00010799,2]
[335535272,1724315433811,-500.0,0.00010799,2]
[335535273,1724315433821,-500.0,0.00010799,2]
[335535274,1724315433830,-521.34868551,0.00010799,2]
[335535275,1724315433839,-500.0,0.00010799,2]
[335535276,1724315433849,-500.0,0.00010799,2]
[335535277,1724315433859,-500.0,0.00010799,2]
[335535278,1724315433869,-500.0,0.00010799,2]
[335535279,1724315433879,-500.0,0.00010799,2]
[335535280,1724315433889,-500.0,0.00010799,2]
[335535281,1724315433899,-290.40094088,0.00010799,2]
[335535282,1724315433909,-500.0,0.00010799,2]
[335535283,1724315433919,-500.0,0.00010799,2]
[335535284,1724315433930,-478.9688741,0.00010799,2]
[335535285,1724315433939,-74.84756349,0.00010799,2]
[335535286,1724315433951,-425.15243651,0.00010799,2]
[335535287,1724315433961,-500.0,0.00010799,2]
[335535288,1724315433970,-500.0,0.00010799,2]
[335535289,1724315433980,-500.0,0.00010799,2]
[335535290,1724315433989,-500.0,0.00010799,2]
[335535291,1724315433999,-601.58113087,0.00010799,2]
[335535292,1724315434009,-500.0,0.00010799,2]
[335535293,1724315434018,-500.0,0.00010799,2]
[335535294,1724315434028,-500.0,0.00010799,2]
[335535295,1724315434038,-500.0,0.00010799,2]
[335535296,1724315434047,-500.0,0.00010799,2]
[335535297,1724315434057,-500.0,0.00010799,2]
[335535298,1724315434067,-519.71758642,0.00010799,2]
[335535299,1724315434077,-500.0,0.00010799,2]
[335535300,1724315434087,-500.0,0.00010799,2]
[335535301,1724315434096,-500.0,0.00010799,2]
[335535302,1724315434105,-500.0,0.00010799,2]
[335535303,1724315434114,-500.0,0.00010799,2]
[335535304,1724315434123,-500.0,0.00010799,2]
[335535305,1724315434133,-500.0,0.00010799,2]
[335535306,1724315434143,-500.0,0.00010799,2]
[335535307,1724315434152,-408.2697894,0.00010799,2]
[335535308,1724315434162,-500.0,0.00010799,2]
[335535309,1724315434171,-500.0,0.00010799,2]
[335535310,1724315434180,-500.0,0.00010799,2]
[335535311,1724315434190,-500.0,0.00010799,2]
[335535312,1724315434200,-500.0,0.00010799,2]
[335535313,1724315434209,-219.39972685,0.00010799,2]
[335535314,1724315434220,-500.0,0.00010799,2]
[335535315,1724315434230,-500.0,0.00010799,2]
[335535316,1724315434240,-500.0,0.00010799,2]
[335535317,1724315434250,-500.0,0.00010799,2]
[335535318,1724315434267,-500.0,0.00010799,2]
[335535319,1724315434277,-181.35571149,0.00010799,2]
[335535320,1724315434286,-500.0,0.00010799,2]
[335535321,1724315434296,-500.0,0.00010799,2]
[335535322,1724315434308,-500.0,0.00010799,2]
[335535323,1724315434317,-297.74627761,0.00010799,2]
[335535324,1724315434326,-500.0,0.00010799,2]
[335535325,1724315434335,-500.0,0.00010799,2]
[335535326,1724315434344,-500.0,0.00010799,2]
[335535327,1724315434354,-500.0,0.00010799,2]
[335535328,1724315434363,-500.0,0.00010799,2]
[335535329,1724315434373,-500.0,0.00010799,2]
[335535330,1724315434383,-500.0,0.00010799,2]
[335535331,1724315434392,-500.0,0.00010799,2]
[335535332,1724315434402,-500.0,0.00010799,2]
[335535333,1724315434411,-500.0,0.00010799,2]
[335535334,1724315434421,-500.0,0.00010799,2]
[335535335,1724315434430,-503.26274351,0.00010799,2]
[335535336,1724315434440,-513.89558918,0.00010799,2]
[335535337,1724315434449,-501.01137996,0.00010799,2]
[335535338,1724315434458,-1298.71692182,0.00010799,2]
[335535339,1724315434468,-401.85092769,0.000108,2]
[335535340,1724315434477,-95392.03977869,0.000108,2]
[335535341,1724315434489,-17944.94680985,0.000108,2]
[335535342,1724315434498,-1000.0,0.000108,2]
[335535343,1724315434507,-1000.0,0.000108,2]
[335535344,1724315434518,-290.33591197,0.000108,2]
[335535345,1724315434530,-709.66408803,0.000108,2]
[335535346,1724315434539,-1000.0,0.000108,2]
[335535347,1724315434548,-209.56055955,0.000108,2]
[335535348,1724315434560,-100.89770791,0.000108,2]
[335535349,1724315434569,-300.2156988,0.000108,2]
[335535350,1724315434579,-677.14357184,0.000108,2]
[335535351,1724315434588,-105.99188288,0.000108,2]
[335535352,1724315434599,-368.7704374,0.000108,2]
[335535353,1724315434610,-1028.79,0.000108,2]
[335535354,1724315434622,-304.9,0.000108,2]
[335535365,1724315437805,-155.0,0.00010097,2]
[335535366,1724315437814,-137.46071786,0.00010699,2]
[335535367,1724315438024,-17.53928214,0.00010699,2]
[335535368,1724315438034,-1258.0,0.00010773,2]
[335535369,1724315438044,-1674.0,0.00010773,2]
[335535370,1724315438053,-197.53097559,0.00010799,2]
[335535371,1724315438063,-191.54767972,0.000108,2]
[335535372,1724315438072,-200.0,0.000108,2]
[335535373,1724315438081,-2000.0,0.000108,2]
[335535374,1724315438091,-200.0,0.000108,2]
[335535375,1724315438100,-24434.26166326,0.000108,2]
[335535388,1724315438252,-51212.03638176,0.000108,2]
[335535390,1724315438273,-25794.47568979,0.000108,2]
[335535420,1724315439878,-453.63996846,9.962e-05,2]
[335535421,1724315439934,-25713.1298348,9.962e-05,2]
[335535422,1724315439945,-2422.12749711,0.000107,2]
[335535423,1724315439954,-196980.75148413,0.000108,2]
[335535424,1724315439966,-4582.46085546,0.000108,2]
[335535425,1724315439977,-263.635,0.000108,2]
[335535426,1724315439992,-69773.71844678,0.000108,2]
[335535427,1724315440003,-615.61579363,0.000108,2]
[335535428,1724315440106,-52110.85762461,0.000108,2]
[335535640,1724315442807,-587.20010316,0.00010699,2]
[335535660,1724315442920,-880.79319684,0.00010699,2]
[335535662,1724315442930,-1544.0,0.00010773,2]
[335535664,1724315442939,-6373.23539673,0.000108,2]
[335535666,1724315442950,-473.25526323,0.000108,2]
[335535668,1724315442962,-6099.87879838,0.000108,2]
[335535670,1724315442974,-1327.24813627,0.000108,2]
[335535682,1724315443091,-566.35561271,0.000108,2]
[335535684,1724315443102,-485.305,0.000108,2]
[335535687,1724315443114,-2002149.66308361,0.000108,2]
[335535925,1724315445755,-2470.79766762,0.000108,2]
[335535928,1724315445766,-263.86078829,0.000108,2]
[335535937,1724315445816,-565.134902,0.000108,2]
[335535943,1724315445877,-8499.85506002,0.000108,2]
[335535945,1724315445889,-16288.40638518,0.000108,2]
[335535951,1724315445939,-432.05266282,0.000108,2]
[335535953,1724315445950,-5948.71108862,0.000108,2]
[335535955,1724315445962,-612.34305062,0.000108,2]
[335535957,1724315445972,-314.2299998,0.000108,2]
[335535960,1724315445996,-949.65,0.000108,2]
[335535967,1724315446058,-2066.50353201,0.000108,2]
[335535969,1724315446070,-6298.44402981,0.000108,2]
[335536043,1724315456953,500.0,8.964e-05,2]
[335536044,1724315486771,265.4046,9.807e-05,2]
[335536045,1724315519378,500.0,8.964e-05,2]
[335536046,1724315546950,500.0,8.964e-05,2]
[335536047,1724315569946,500.0,8.964e-05,2]
[335536049,1724315579981,500.0,8.964e-05,2]
[335536050,1724315582309,500.0,8.964e-05,2]
[335536052,1724315591910,200.0,9.9e-05,3]
[335536056,1724315650927,1959.67229461,9.899e-05,2]
[335536059,1724315661479,5064.49622365,9.899e-05,2]
[335536063,1724315722173,1000.0,9.72e-05,2]
[335536065,1724315739036,173.39,9.723e-05,2]
[335536072,1724315826273,170.06,9.678e-05,2]
[335536077,1724315881997,466.8,8.219e-05,2]
[335536087,1724316013617,175.48,9.59e-05,2]
[335536088,1724316028855,250.0,9.589e-05,2]
[335536101,1724316208911,203.06755488,9.899e-05,2]
[335536103,1724316226481,200.0,9.575e-05,2]
[335536110,1724316332287,164.17,9.657e-05,2]
[335536115,1724316397626,1740.58702066,9.899e-05,2]
[335536116,1724316400392,529.41600118,9.899e-05,2]
[335536118,1724316417889,529.41600118,9.899e-05,2]
[335536119,1724316422609,200.0,9.9e-05,3]
[335536127,1724316528842,10543.4949088,9.861e-05,2]
[335536135,1724316577805,155.38649312,9.899e-05,2]
[335536147,1724316632096,-440.37274966,9.943e-05,2]
[335536148,1724316632106,-300.0,9.999e-05,2]
[335536149,1724316632115,-1151.21727643,9.999e-05,2]
[335536150,1724316632207,-506.50006387,9.999e-05,2]
[335536151,1724316632216,-29.32310947,9.999e-05,2]
[335536152,1724316632227,-125.67689053,9.999e-05,2]
[335536153,1724316632236,-1050.0,0.0001,2]
[335536154,1724316632245,-2447.23793792,0.0001,2]
[335536155,1724316632263,-2352.8943779,0.0001,2]
[335536156,1724316632272,-500.0,0.0001,3]
[335536157,1724316632282,-307.90693662,0.00010009,2]
[335536158,1724316632290,-353.51434234,0.00010026,2]
[335536159,1724316632300,-800.0,0.000101,3]
[335536160,1724316632309,-210.52,0.0001014,2]
[335536161,1724316632318,-1762.3,0.000102,2]
[335536162,1724316632327,-1100.0,0.000102,3]
[335536163,1724316632337,-282.84,0.000102,2]
[335536164,1724316632347,-563.85,0.000102,2]
[335536165,1724316632356,-150.99,0.000102,2]
[335536166,1724316632366,-150.99,0.00010299,2]
[335536167,1724316632375,-499.99,0.000103,2]
[335536168,1724316632384,-3725.01,0.000103,2]
[335536169,1724316632393,-1300.0,0.000103,3]
[335536170,1724316632403,-500.0,0.00010334,2]
[335536171,1724316632412,-150.0,0.00010356,2]
[335536173,1724316632587,-6779.8597245,0.00010357,2]
[335536174,1724316632597,-200.0,0.000104,3]
[335536175,1724316632607,-466.8,0.00010457,2]
[335536176,1724316632617,-203.77747582,0.00010471,2]
[335536177,1724316632626,-200.0,0.000105,3]
[335536178,1724316632635,-1500.0,0.00010526,2]
[335536179,1724316632644,-150.0,0.00010527,2]
[335536180,1724316632654,-1500.0,0.00010531,2]
[335536181,1724316632663,-150.0,0.0001055,2]
[335536182,1724316632673,-150.0,0.0001056,2]
[335536183,1724316632682,-1500.0,0.00010567,2]
[335536184,1724316632693,-150.0,0.00010579,2]
[335536185,1724316632703,-150.0,0.00010585,2]
[335536186,1724316632716,-150.0,0.00010599,2]
[335536187,1724316632726,-200.0,0.000106,3]
[335536188,1724316632735,-150.0,0.00010612,2]
[335536189,1724316632745,-150.0,0.00010623,2]
[335536190,1724316632755,-150.0,0.00010637,2]
[335536191,1724316632764,-150.0,0.0001064,2]
[335536192,1724316632774,-1500.0,0.00010658,2]
[335536193,1724316632784,-469.33497757,0.00010685,2]
[335536194,1724316632794,-1784.5465,0.00010689,2]
[335536195,1724316632803,-187.6098668,0.00010699,2]
[335536196,1724316632812,-1076.67749202,0.00010699,2]
[335536197,1724316632821,-536.75723948,0.00010699,2]
[335536198,1724316632831,-743.06186494,0.000107,2]
[335536199,1724316632840,-200.0,0.000107,3]
[335536200,1724316632849,-150.0,0.00010701,2]
[335536201,1724316632858,-150.0,0.00010703,2]
[335536202,1724316632868,-301.30896283,0.00010706,2]
[335536203,1724316632878,-150.0,0.00010713,2]
[335536204,1724316632887,-1500.0,0.00010713,2]
[335536205,1724316632896,-150.0,0.00010723,2]
[335536206,1724316632906,-150.0,0.00010724,2]
[335536207,1724316632915,-150.0,0.00010731,2]
[335536208,1724316632924,-1500.0,0.00010736,2]
[335536209,1724316632934,-150.0,0.00010758,2]
[335536210,1724316632943,-150.0,0.00010766,2]
[335536211,1724316632952,-150.0,0.00010769,2]
[335536212,1724316632961,-200.0,0.00010772,2]
[335536213,1724316632970,-342.41627858,0.00010773,2]
[335536214,1724316632979,-5064.91531766,0.00010783,2]
[335536215,1724316632989,-150.0,0.00010789,2]
[335536216,1724316632998,-500.0,0.00010789,2]
[335536217,1724316633009,-500.0,0.00010789,2]
[335536218,1724316633019,-500.0,0.00010789,2]
[335536219,1724316633028,-500.0,0.00010789,2]
[335536220,1724316633038,-500.0,0.00010789,2]
[335536221,1724316633048,-500.0,0.00010789,2]
[335536222,1724316633059,-500.0,0.00010789,2]
[335536223,1724316633069,-512.5585371,0.00010789,2]
[335536224,1724316633078,-515.28124494,0.00010789,2]
[335536225,1724316633088,-500.0,0.00010789,2]
[335536226,1724316633098,-538.93711602,0.00010789,2]
[335536227,1724316633107,-500.0,0.00010789,2]
[335536228,1724316633118,-256.96675794,0.00010789,2]
[335536229,1724316633128,-509.40278361,0.00010789,2]
[335536230,1724316633137,-500.0,0.00010789,2]
[335536231,1724316633147,-500.0,0.00010789,2]
[335536232,1724316633156,-500.0,0.00010789,2]
[335536233,1724316633166,-509.32271729,0.00010789,2]
[335536234,1724316633175,-500.0,0.00010789,2]
[335536235,1724316633185,-524.18247941,0.00010789,2]
[335536236,1724316633195,-500.0,0.00010789,2]
[335536237,1724316633204,-500.0,0.00010789,2]
[335536238,1724316633213,-500.0,0.00010789,2]
[335536239,1724316633223,-500.0,0.00010789,2]
[335536240,1724316633232,-500.0,0.00010789,2]
[335536241,1724316633242,-189.31218932,0.00010789,2]
[335536242,1724316633253,-500.0,0.00010789,2]
[335536243,1724316633263,-500.0,0.00010789,2]
[335536244,1724316633273,-547.26287692,0.00010789,2]
[335536245,1724316633282,-508.748586,0.00010789,2]
[335536246,1724316633292,-519.66153294,0.00010789,2]
[335536247,1724316633302,-524.10111143,0.00010789,2]
[335536248,1724316633312,-500.0,0.00010789,2]
[335536249,1724316633322,-500.0,0.00010789,2]
[335536250,1724316633332,-500.0,0.00010789,2]
[335536251,1724316633343,-632.24478421,0.00010789,2]
[335536252,1724316633352,-531.4246382,0.00010789,2]
[335536253,1724316633362,-525.71847962,0.00010789,2]
[335536254,1724316633371,-500.0,0.00010789,2]
[335536255,1724316633380,-526.60792658,0.00010789,2]
[335536256,1724316633390,-500.0,0.00010789,2]
[335536257,1724316633400,-523.50012014,0.00010789,2]
[335536258,1724316633410,-526.59168512,0.00010789,2]
[335536259,1724316633419,-529.04368476,0.00010789,2]
[335536260,1724316633429,-508.64032701,0.00010789,2]
[335536261,1724316633439,-510.92826771,0.00010789,2]
[335536262,1724316633449,-551.59924657,0.00010789,2]
[335536263,1724316633458,-526.4356642,0.00010789,2]
[335536264,1724316633468,-506.63526021,0.00010789,2]
[335536265,1724316633477,-527.59799076,0.00010789,2]
[335536266,1724316633487,-506.52650027,0.00010789,2]